bitfinex/quotes_ETHUSD_20241106
["timestamp","ask_amount","ask_price","bid_price","bid_amount"]
[1730871940057,3.86101,2590.0,2589.7,0.55]
[1730871940408,3.86117,2589.9,2589.7,0.55]
[1730871940964,3.86117,2589.9,2589.2,3.86208]
[1730871940965,3.86137,2589.8,2589.3,4.68124]
[1730871941106,3.86137,2589.8,2589.4,0.55]
[1730871941307,3.86172,2589.6,2589.1,3.86227]
[1730871941661,3.86172,2589.6,2589.2,3.86218]
[1730871942040,3.86172,2589.6,2589.1,3.86231]
[1730871942348,3.86149,2589.7,2589.2,3.86209]
[1730871942571,3.86149,2589.7,2589.4,0.8192]
[1730871943070,3.8614,2589.8,2589.4,0.8192]
[1730871943214,3.86162,2589.6,2589.4,0.8192]
[1730871943411,7.72332,2589.6,2589.4,0.8192]
[1730871943616,3.86162,2589.6,2589.4,0.8192]
[1730871943957,3.86145,2589.7,2589.4,0.8192]
[1730871944336,3.86141,2589.8,2589.4,0.8192]
[1730871944541,3.86146,2589.7,2589.4,0.8192]
[1730871945065,3.86161,2589.6,2589.4,0.8192]
[1730871945978,3.86146,2589.7,2589.4,0.8192]
[1730871946382,3.86131,2589.8,2589.5,0.55]
[1730871946719,8.86095,2590.1,2589.5,0.55]
[1730871946919,3.86113,2590.0,2589.5,4.4117]
[1730871947715,3.86095,2590.1,2589.5,4.4117]
[1730871947716,3.86116,2589.9,2589.5,4.4117]
[1730871948018,3.8616,2589.6,2589.4,0.8192]
[1730871948190,3.86155,2589.7,2589.4,0.8192]
[1730871948388,0.7565,2589.8,2589.3,0.55]
[1730871948578,3.86177,2589.5,2589.2,0.7597]
[1730871949414,3.86204,2589.3,2588.9,4.62231]
[1730871949617,3.86204,2589.3,2589.0,0.762231]
[1730871950125,3.86204,2589.3,2588.7,0.7597]
[1730871950126,3.86241,2589.1,2588.7,0.7597]
[1730871951328,3.86273,2588.9,2588.5,0.7597]
[1730871951523,3.86311,2588.6,2588.2,0.7597]
[1730871951738,3.86289,2588.8,2588.3,3.86353]
[1730871951927,3.86295,2588.7,2588.3,4.71223]
[1730871952656,3.86273,2588.9,2588.4,3.86331]
[1730871953438,3.86261,2589.0,2588.3,4.7121]
[1730871953439,3.8625,2589.0,2588.6,0.55]
[1730871953747,0.05973599,2588.9,2588.8,4.41278]
[1730871954054,0.7565,2589.3,2588.8,4.930028]
[1730871954354,3.86216,2589.3,2588.8,4.930038]
[1730871954525,0.05983298,2589.2,2588.8,4.930038]
[1730871954848,3.86216,2589.3,2588.8,4.930038]
[1730871955149,0.05898495,2589.2,2588.8,4.930038]
[1730871955326,3.86216,2589.3,2588.9,0.9552578]
[1730871955522,0.05900898,2589.2,2588.9,0.9552578]
[1730871955730,3.86216,2589.3,2588.9,0.9552578]
[1730871955930,0.05839564,2589.2,2588.9,0.9552578]
[1730871956162,3.86193,2589.4,2588.9,4.8178278]
[1730871956359,0.05839468,2589.1,2588.9,4.8178278]
[1730871956672,3.86193,2589.4,2589.0,4.45096758]
[1730871956853,3.86174,2589.5,2589.1,0.55]
[1730871957652,4.61821,2589.6,2589.1,0.55]
[1730871957830,3.86192,2589.4,2589.1,0.55]
[1730871958460,7.72392,2589.4,2589.1,0.55]
[1730871958666,3.86192,2589.4,2589.1,0.55]
[1730871959032,3.86192,2589.4,2589.0,0.55]
[1730871959628,3.86199,2589.4,2589.0,0.55]
[1730871959837,3.86199,2589.4,2589.0,0.991257]
[1730871960361,3.86211,2589.3,2589.0,0.991257]
[1730871960530,3.86183,2589.5,2589.0,0.991257]
[1730871960730,3.86191,2589.4,2589.0,0.991257]
[1730871961170,3.86183,2589.5,2589.0,4.853737]
[1730871961345,3.86183,2589.5,2589.1,1.2967737]
[1730871961722,8.86161,2589.6,2589.2,0.55]
[1730871961866,8.86161,2589.6,2589.2,4.41211]
[1730871962166,3.86161,2589.6,2589.2,4.41211]
[1730871962473,3.86132,2589.8,2589.3,0.95711537]
[1730871962686,3.86162,2589.6,2589.3,0.95711537]
[1730871963581,8.86111,2590.0,2589.6,0.8114]
[1730871963900,8.86111,2590.0,2589.7,0.55]
[1730871964071,3.86111,2590.0,2589.7,0.55]
[1730871964888,0.7683,2590.1,2589.7,1.458468]
[1730871965182,3.8607,2590.2,2589.7,5.319898]
[1730871965778,9.62881,2590.4,2589.9,0.55]
[1730871965946,9.62881,2590.4,2589.6,0.8114]
[1730871965947,3.86071,2590.2,2589.6,4.67299]
[1730871966148,3.86101,2590.0,2589.7,0.55]
[1730871966493,7.72209,2590.0,2589.7,0.55]
[1730871966993,3.86117,2589.9,2589.7,0.55]
[1730871967378,3.8613,2589.8,2589.3,1.76851537]
[1730871967608,7.72267,2589.8,2589.3,0.8114]
[1730871967890,3.86111,2590.0,2589.4,3.86181]
[1730871968099,8.86082,2590.2,2589.7,0.8114]
[1730871968595,8.86082,2590.2,2589.7,4.67277]
[1730871968757,0.05231027,2590.1,2589.8,1.403425]
[1730871969956,3.86102,2590.0,2589.7,0.8114]
[1730871970209,3.91356886,2589.9,2589.7,0.8114]
[1730871970412,0.05230886,2589.9,2589.7,0.8114]
[1730871970701,3.86102,2590.0,2589.4,0.8114]
[1730871970905,0.05056647,2589.9,2589.5,3.86167]
[1730871971061,3.91171647,2589.9,2589.5,3.86167]
[1730871971654,0.05056647,2589.9,2589.5,3.86167]
[1730871972002,3.91173647,2589.9,2589.5,3.86165]
[1730871972192,4.68901612,2589.9,2589.5,3.86165]
[1730871973311,4.68901612,2589.9,2589.4,0.8114]
[1730871973312,3.91174647,2589.9,2589.6,0.8114]
[1730871973598,0.05056647,2589.9,2589.7,0.55]
[1730871974669,3.91183647,2589.9,2589.3,0.7566]
[1730871974872,3.86148,2589.7,2589.4,0.55]
[1730871975092,0.04888943,2589.6,2589.4,0.55]
[1730871976758,0.04888943,2589.6,2589.4,4.41187]
[1730871976960,4.62337,2589.9,2589.5,3.86174]
[1730871977175,0.04883716,2589.8,2589.4,4.41188]
[1730871977658,3.91020716,2589.8,2589.4,4.41188]
[1730871978203,3.86152,2589.7,2589.4,0.55]
[1730871978406,3.86178,2589.5,2589.1,3.86221]
[1730871978615,3.91045025,2589.6,2589.2,0.55]
[1730871978904,0.04883932,2589.4,2589.2,0.55]
[1730871979056,0.04883368,2589.3,2589.2,0.55]
[1730871979263,3.86161,2589.6,2589.2,0.55]
[1730871979499,0.04881499,2589.5,2589.2,0.55]
[1730871979699,0.04881499,2589.5,2589.4,3.86189]
[1730871979902,0.04881499,2589.5,2589.4,5.554679]
[1730871980108,4.62316,2590.1,2589.5,3.86174]
[1730871980260,4.62307,2590.1,2589.6,4.41153]
[1730871980928,3.86087,2590.1,2589.6,4.41153]
[1730871981084,3.86087,2590.1,2589.6,5.3531359]
[1730871981981,3.86087,2590.1,2589.7,4.61802]
[1730871983124,4.62285,2590.3,2589.7,4.61802]
[1730871983280,3.86071,2590.2,2589.7,4.61802]
[1730871983476,4.62285,2590.3,2589.7,0.7566]
[1730871983735,4.62285,2590.3,2589.8,3.86129]
[1730871983736,0.04490041,2590.2,2589.8,3.86129]
[1730871984028,4.62284,2590.3,2589.8,3.86129]
[1730871984242,0.04495637,2590.1,2589.8,3.86129]
[1730871984535,0.04495609,2590.0,2589.8,3.86129]
[1730871984834,3.8607,2590.2,2589.8,3.86129]
[1730871984983,0.04495594,2589.9,2589.8,3.86129]
[1730871985327,0.04495667,2589.9,2589.8,3.86129]
[1730871985484,3.8607,2590.2,2589.8,3.86129]
[1730871985682,0.04495633,2590.1,2589.8,3.86129]
[1730871985914,0.04495633,2590.1,2589.7,4.61798]
[1730871986523,0.04495633,2590.1,2589.8,3.8613]
[1730871986882,0.04495633,2590.1,2590.0,4.411]
[1730871987090,3.86026,2590.5,2590.1,4.61741]
[1730871987394,3.86026,2590.5,2590.1,0.7566]
[1730871987599,3.86063,2590.3,2590.0,0.55]
[1730871987793,4.62283,2590.3,2590.0,0.55]
[1730871988846,0.7622,2590.3,2590.0,0.55]
[1730871989072,4.62276,2590.3,2590.0,0.55]
[1730871989725,3.8607,2590.2,2589.7,4.61722]
[1730871990068,3.86109,2590.0,2589.5,0.7558]
[1730871990278,3.86122,2589.9,2589.5,0.7558]
[1730871990423,3.86122,2589.9,2589.4,3.86177]
[1730871990424,3.86133,2589.8,2589.4,3.86189]
[1730871990624,5.0,2590.7,2589.5,0.7558]
[1730871990935,5.0,2590.7,2590.6,0.7558]
[1730871991136,8.51393,2591.2,2590.6,0.7558]
[1730871991137,4.6546,2591.2,2590.6,0.7558]
[1730871991335,3.85899,2591.4,2590.9,0.7558]
[1730871991872,7.71801,2591.4,2590.9,0.7558]
[1730871992167,3.85899,2591.4,2590.9,0.7558]
[1730871992734,7.71802,2591.4,2590.9,0.7558]
[1730871992939,7.71802,2591.4,2590.5,0.7558]
[1730871992940,0.7953,2591.1,2590.5,0.7558]
[1730871993124,3.85951,2591.0,2590.5,0.7558]
[1730871993738,3.85975,2590.9,2590.3,1.3058]
[1730871993959,8.85951,2591.0,2590.3,1.3058]
[1730871994161,3.85966,2590.9,2590.4,3.86035]
[1730871994367,10.210921,2591.0,2590.3,1.3058]
[1730871994580,10.210921,2591.0,2590.4,3.8604]
[1730871995082,3.85989,2590.8,2590.3,1.3058]
[1730871995241,3.85998,2590.7,2590.3,0.7558]
[1730871995578,0.7953,2590.7,2590.1,0.7558]
[1730871995761,0.7953,2590.7,2590.2,3.86068]
[1730871995948,4.65526,2590.7,2590.2,3.86068]
[1730871996268,0.7953,2590.7,2590.2,3.86068]
[1730871996473,8.8596,2591.0,2590.3,3.86053]
[1730871996474,9.65486,2591.0,2590.3,3.86053]
[1730871996631,5.7953,2591.0,2590.5,3.86011]
[1730871996966,4.65452,2591.2,2590.5,4.41014]
[1730871997166,3.85945,2591.1,2590.5,4.41014]
[1730871997845,0.7953,2591.2,2590.1,0.7558]
[1730871998043,0.7953,2591.2,2589.5,0.27740202]
[1730871998044,0.7953,2590.6,2589.9,4.6168]
[1730871998239,3.85975,2590.9,2590.2,3.8606]
[1730871998240,4.65515,2590.8,2590.2,3.8606]
[1730871998529,4.65515,2590.8,2590.0,0.07721954]
[1730871998530,9.43899,2591.1,2590.4,3.86029]
[1730871998734,3.85968,2590.9,2590.4,3.86029]
[1730871999074,0.03531653,2590.8,2590.4,3.86029]
[1730871999576,0.03531653,2590.8,2590.3,0.7558]
[1730871999742,0.03531653,2590.8,2590.4,4.41032]
[1730871999930,0.03531653,2590.8,2590.5,3.86017]
[1730872000134,7.71891,2591.1,2590.5,3.86017]
[1730872000331,0.03530325,2591.0,2590.6,3.86009]
[1730872000535,0.03530325,2591.0,2590.4,4.41032]
[1730872000739,3.85977,2590.9,2590.4,0.55]
[1730872001053,0.0353032,2590.8,2590.4,0.55]
[1730872001587,3.8951432,2590.8,2590.3,0.7558]
[1730872001883,3.86018,2590.6,2590.1,4.61654]
[1730872002087,3.86018,2590.6,2590.1,0.7558]
[1730872002088,3.86036,2590.5,2590.1,0.7558]
[1730872002251,3.89603262,2590.5,2590.1,0.7558]
[1730872003146,0.03567262,2590.5,2589.8,0.7558]
[1730872003352,3.86086,2590.1,2589.6,4.61729]
[1730872003668,0.7953,2590.2,2589.6,0.7558]
[1730872003669,0.03539916,2590.0,2589.6,0.7558]
[1730872003872,3.86122,2589.9,2589.6,0.7558]
[1730872004043,3.861,2590.0,2589.6,0.7558]
[1730872004249,0.03538757,2589.8,2589.6,0.7558]
[1730872004470,4.6561,2590.2,2589.7,3.86137]
[1730872004690,3.86086,2590.1,2589.7,3.86137]
[1730872004892,0.7953,2590.2,2589.6,0.7558]
[1730872005102,3.86092,2590.1,2589.6,4.61738]
[1730872005945,7.72186,2590.1,2589.6,4.61738]
[1730872006589,3.86092,2590.1,2589.6,4.61738]
[1730872006864,5.0,2590.4,2590.0,1.3353]
[1730872007015,3.86033,2590.5,2590.0,5.19629]
[1730872007326,7.72066,2590.5,2590.0,5.19629]
[1730872007610,3.86033,2590.5,2590.0,5.19629]
[1730872007922,3.86048,2590.4,2590.0,1.3353]
[1730872008217,3.86033,2590.5,2590.0,1.3353]
[1730872008414,3.86033,2590.5,2590.0,5.19628]
[1730872008719,3.86033,2590.5,2590.1,3.86085]
[1730872008913,3.86033,2590.5,2590.0,5.19628]
[1730872008914,3.86041,2590.4,2590.0,5.19628]
[1730872009211,3.86041,2590.4,2590.0,1.3353]
[1730872009416,3.86041,2590.4,2590.0,5.19628]
[1730872009634,3.86041,2590.4,2590.0,6.102027]
[1730872009925,5.0,2590.7,2590.0,6.102017]
[1730872009926,3.86015,2590.6,2590.0,6.102017]
[1730872010102,3.86032,2590.5,2590.0,6.102017]
[1730872010481,3.86015,2590.6,2590.0,6.102017]
[1730872010680,3.86043,2590.4,2590.0,6.102017]
[1730872010876,3.8601,2590.6,2590.0,0.7853]
[1730872011187,7.721,2590.4,2590.0,0.7853]
[1730872011373,3.86047,2590.4,2590.0,0.7853]
[1730872011573,3.86059,2590.3,2590.0,0.7853]
[1730872012194,3.86092,2590.1,2589.6,4.64689]
[1730872012394,3.86092,2590.1,2589.7,0.55]
[1730872012594,7.72189,2590.1,2589.7,0.55]
[1730872012914,3.861,2590.0,2589.7,0.55]
[1730872013774,0.03393122,2589.9,2589.7,0.55]
[1730872014173,3.86087,2590.1,2589.7,0.55]
[1730872014421,0.03383518,2590.0,2589.7,1.5709398]
[1730872015919,0.03383518,2590.0,2589.7,5.4323098]
[1730872016288,3.86086,2590.1,2589.7,5.4323098]
[1730872016484,3.86145,2589.7,2589.6,0.1]
[1730872016689,3.86145,2589.7,2588.7,0.28855923]
[1730872016690,3.86279,2588.8,2588.7,0.28855923]
[1730872016894,3.86279,2588.8,2588.2,2.330507]
[1730872017091,3.86316,2588.6,2588.2,2.330507]
[1730872017492,3.86353,2588.3,2588.2,1.545207]
[1730872018891,3.86315,2588.6,2588.3,0.55]
[1730872019287,3.86315,2588.6,2588.1,0.55]
[1730872019535,7.72635,2588.6,2588.1,0.55]
[1730872019841,3.86315,2588.6,2588.1,0.55]
[1730872020132,5.0,2588.8,2588.4,0.55]
[1730872020343,5.0,2588.8,2588.5,3.86321]
[1730872020504,5.0,2588.8,2588.3,0.7874]
[1730872020505,5.0,2588.8,2588.6,0.55]
[1730872020690,5.0,2588.8,2588.4,0.55]
[1730872020896,3.86264,2588.9,2588.4,0.55]
[1730872021214,3.86289,2588.8,2588.4,0.55]
[1730872022436,7.72581,2588.8,2588.4,0.55]
[1730872022618,3.86302,2588.7,2588.4,0.55]
[1730872022826,0.8122,2588.7,2588.4,0.55]
[1730872023006,0.8122,2588.7,2588.0,0.7874]
[1730872023007,3.86318,2588.6,2588.0,4.65131]
[1730872023222,7.72636,2588.6,2588.0,4.65131]
[1730872023401,8.580216,2588.6,2588.0,4.65131]
[1730872023749,3.86295,2588.7,2588.2,3.86361]
[1730872024234,3.86309,2588.6,2588.3,0.55]
[1730872024451,3.86294,2588.7,2588.3,0.55]
[1730872024997,4.67481,2589.0,2588.4,3.86332]
[1730872025225,4.67481,2589.0,2588.5,1.3374]
[1730872025393,3.86282,2588.8,2588.5,1.3374]
[1730872025634,0.8122,2589.0,2588.5,1.3374]
[1730872025835,5.0,2589.1,2588.8,0.7874]
[1730872026043,5.0,2589.9,2589.2,0.55]
[1730872026255,5.0,2589.9,2589.2,4.41219]
[1730872026256,3.86159,2589.7,2589.2,4.41219]
[1730872026464,3.86157,2589.7,2589.2,4.41218]
[1730872026817,8.86125,2589.9,2589.4,0.55]
[1730872027144,4.86867666,2589.9,2589.4,0.55]
[1730872027464,3.8613,2589.8,2589.4,0.55]
[1730872028414,3.86146,2589.7,2589.4,0.55]
[1730872029545,4.2619266,2590.0,2589.5,3.86173]
[1730872029750,3.86129,2589.9,2589.4,0.55]
[1730872029918,3.86129,2589.9,2589.4,4.41177]
[1730872030466,3.86125,2589.9,2589.4,8.27359]
[1730872030654,3.86125,2589.9,2589.4,4.41177]
[1730872030966,3.86124,2589.9,2589.4,4.41177]
[1730872031520,0.4008166,2590.0,2589.6,0.55]
[1730872031723,5.8122,2590.3,2590.0,0.55]
[1730872031724,8.86063,2590.3,2590.0,0.55]
[1730872031937,3.86077,2590.2,2589.7,0.7874]
[1730872032279,3.86063,2590.3,2589.8,0.55]
[1730872032486,3.86092,2590.1,2589.8,0.55]
[1730872033040,3.86063,2590.3,2589.8,0.55]
[1730872033236,3.86063,2590.3,2589.8,4.41129]
[1730872033484,3.86035,2590.5,2590.0,4.41093]
[1730872033668,3.86035,2590.5,2590.0,4.41092]
[1730872033942,3.86053,2590.4,2590.0,0.55]
[1730872034187,3.86035,2590.5,2590.0,4.41099]
[1730872034488,3.86005,2590.7,2590.2,5.1981]
[1730872034688,3.86011,2590.6,2590.2,1.3374]
[1730872034981,5.8122,2591.0,2590.2,2.320532]
[1730872035156,3.85981,2590.8,2590.4,0.55]
[1730872035487,3.85966,2590.9,2590.4,0.55]
[1730872035696,5.0,2591.0,2590.3,0.55]
[1730872035873,3.86007,2590.7,2590.3,0.55]
[1730872036196,3.8601,2590.6,2590.3,0.55]
[1730872036542,3.86007,2590.7,2590.3,0.55]
[1730872036746,3.86006,2590.7,2590.3,0.55]
[1730872037040,3.86033,2590.5,2590.3,0.55]
[1730872037260,3.86012,2590.6,2590.3,0.55]
[1730872037659,3.86007,2590.7,2590.3,0.55]
[1730872037941,3.86016,2590.6,2590.3,0.55]
[1730872038639,3.86038,2590.5,2590.3,0.55]
[1730872038874,0.772054,2590.5,2589.9,0.7874]
[1730872039050,3.86062,2590.3,2589.9,0.7874]
[1730872039758,3.86077,2590.2,2589.9,0.7874]
[1730872040135,5.0,2590.5,2589.6,0.7874]
[1730872040136,3.861,2590.0,2589.6,0.7874]
[1730872040883,3.86118,2589.9,2589.6,0.7874]
[1730872041053,3.8613,2589.8,2589.6,0.7874]
[1730872041393,3.86118,2589.9,2589.6,0.7874]
[1730872041553,3.861,2590.0,2589.7,0.55]
[1730872041885,3.86087,2590.1,2589.7,0.55]
[1730872042468,3.86085,2590.1,2589.7,0.55]
[1730872043199,3.86081,2590.2,2589.7,4.41135]
[1730872043497,3.86081,2590.2,2589.7,8.27269]
[1730872043851,3.86081,2590.2,2589.7,0.55]
[1730872044077,9.67234,2590.6,2590.0,0.55]
[1730872044078,3.86049,2590.4,2590.0,0.55]
[1730872045190,3.86049,2590.4,2590.2,0.55]
[1730872045390,3.86055,2590.3,2590.2,0.55]
[1730872045589,3.86053,2590.4,2590.2,0.55]
[1730872046134,3.86055,2590.3,2590.2,0.55]
[1730872046302,3.8607,2590.2,2589.9,0.55]
[1730872048550,3.86041,2590.4,2589.9,4.41104]
[1730872048732,3.86041,2590.4,2590.1,0.55]
[1730872049050,3.85989,2590.8,2590.3,0.55]
[1730872049556,5.386974,2590.9,2590.6,0.7968]
[1730872049557,5.0,2590.9,2590.6,0.7968]
[1730872049762,5.0,2590.9,2590.7,0.55]
[1730872050128,3.85959,2591.0,2590.7,0.55]
[1730872050537,8.85886,2591.5,2590.7,1.070704]
[1730872050538,5.0,2591.5,2590.7,1.070704]
[1730872050737,3.85902,2591.4,2590.9,0.55]
[1730872050942,3.85924,2591.2,2590.9,0.55]
[1730872051152,3.85945,2591.1,2590.7,0.55]
[1730872051358,3.85924,2591.2,2590.7,0.55]
[1730872051359,3.85924,2591.2,2590.7,4.40994]
[1730872051522,3.85953,2591.0,2590.7,0.55]
[1730872051721,7.71918,2591.0,2590.7,0.55]
[1730872051921,3.85953,2591.0,2590.7,0.55]
[1730872052772,8.85901,2591.4,2590.9,0.55]
[1730872052974,3.85951,2591.0,2590.9,0.55]
[1730872053181,1.0826366,2591.4,2590.2,0.779]
[1730872053182,7.71842,2591.2,2590.2,0.779]
[1730872053334,3.86036,2590.5,2590.0,0.779]
[1730872053686,3.86057,2590.3,2590.0,0.779]
[1730872053836,7.7212,2590.3,2590.0,0.779]
[1730872054036,0.0338229,2590.2,2590.0,0.779]
[1730872054390,3.86025,2590.5,2589.7,0.779]
[1730872054680,3.86086,2590.1,2589.7,0.779]
[1730872055036,0.03438038,2590.0,2589.7,0.779]
[1730872055481,3.86116,2589.9,2589.4,4.64079]
[1730872055863,0.8149,2589.0,2588.0,0.779]
[1730872056062,0.03421655,2588.9,2588.2,3.86368]
[1730872056278,0.03421655,2588.9,2588.1,0.26394256]
[1730872056279,0.03421655,2588.9,2588.6,3.86303]
[1730872056466,0.03421655,2588.9,2588.7,3.86289]
[1730872056670,3.86214,2589.3,2588.7,4.64189]
[1730872056887,8.86181,2589.5,2588.9,3.86254]
[1730872057129,4.67643,2589.7,2589.0,3.93968658]
[1730872057298,3.86153,2589.7,2589.0,3.86244]
[1730872057986,3.86153,2589.7,2589.1,0.55]
[1730872058796,0.03422237,2589.6,2589.1,0.55]
[1730872059000,0.03422237,2589.6,2589.3,0.55]
[1730872059407,5.8149,2590.1,2589.5,4.41174]
[1730872059408,8.86091,2590.1,2589.5,4.41174]
[1730872059757,5.0,2590.1,2589.8,0.55]
[1730872060014,3.86014,2590.6,2590.0,0.55]
[1730872060303,3.86023,2590.6,2590.0,4.41091]
[1730872060503,3.85903,2590.6,2590.0,4.41091]
[1730872060693,0.04212022,2590.5,2590.2,0.55]
[1730872061407,3.86001,2590.7,2590.2,0.55]
[1730872061708,9.67464,2590.9,2590.2,0.55]
[1730872061709,3.91065545,2590.6,2590.2,1.068975]
[1730872064325,3.89394051,2590.6,2590.2,1.068975]
[1730872064494,3.86048,2590.4,2590.2,0.55]
[1730872064830,3.89404051,2590.6,2590.2,0.55]
[1730872064831,0.03379623,2590.3,2590.2,0.55]
[1730872065126,3.86021,2590.6,2590.2,0.55]
[1730872065312,0.03379657,2590.3,2590.2,1.068985]
[1730872065511,3.86021,2590.6,2590.2,1.068985]
[1730872065714,0.03379538,2590.3,2590.2,1.068985]
[1730872066010,3.86021,2590.6,2590.2,1.068985]
[1730872066212,0.03379662,2590.3,2590.2,0.55]
[1730872066524,0.03379683,2590.3,2590.2,0.55]
[1730872066732,7.72038,2590.6,2590.2,0.55]
[1730872066886,0.0337967,2590.3,2590.2,0.55]
[1730872067086,3.86019,2590.6,2590.2,0.55]
[1730872067288,0.0337967,2590.3,2590.2,0.55]
[1730872067499,3.86043,2590.4,2590.2,0.55]
[1730872067698,3.89429395,2590.3,2590.2,0.55]
[1730872067900,3.86072,2590.2,2589.8,0.8331]
[1730872068331,0.03378155,2590.1,2589.8,0.8331]
[1730872068633,0.03378155,2590.1,2589.8,1.688696]
[1730872069324,0.03378155,2590.1,2589.9,0.55]
[1730872069902,3.86072,2590.2,2589.9,0.55]
[1730872070289,3.86051,2590.4,2589.9,0.55]
[1730872070492,3.86051,2590.4,2589.9,4.41113]
[1730872070726,3.86055,2590.3,2589.9,4.41113]
[1730872071036,3.86051,2590.4,2589.9,1.5461186]
[1730872071237,8.85982,2590.8,2590.1,0.55]
[1730872071238,3.86021,2590.6,2590.1,0.55]
[1730872071394,3.8602,2590.6,2590.1,4.41076]
[1730872071591,3.8602,2590.6,2590.1,5.33754686]
[1730872071792,3.86028,2590.5,2590.1,1.47678686]
[1730872072145,3.86028,2590.5,2590.1,0.55]
[1730872072997,3.8602,2590.6,2590.1,4.41084]
[1730872073223,3.8602,2590.6,2590.1,0.55]
[1730872073390,8.8149,2590.9,2589.9,0.55]
[1730872073391,3.8605,2590.4,2589.9,0.55]
[1730872073591,4.24655,2590.4,2589.9,0.55]
[1730872073789,3.8605,2590.4,2589.9,0.55]
[1730872074024,3.86057,2590.3,2589.9,0.55]
[1730872074422,3.85988,2590.8,2590.4,0.55]
[1730872075547,3.85962,2591.0,2590.4,5.24349]
[1730872075845,3.85974,2590.9,2590.4,5.24349]
[1730872076041,3.85981,2590.8,2590.4,5.24349]
[1730872076545,3.85974,2590.9,2590.4,5.24349]
[1730872076546,3.85959,2591.0,2590.5,3.86023]
[1730872076999,3.85959,2591.0,2590.6,0.55]
[1730872077513,3.85959,2591.0,2590.5,4.41019]
[1730872077719,7.71918,2591.0,2590.5,4.41019]
[1730872078154,3.85992,2590.8,2590.5,0.55]
[1730872078301,3.85973,2590.9,2590.5,4.41023]
[1730872078935,3.85973,2590.9,2590.5,0.55]
[1730872079433,7.72003,2590.7,2590.3,0.55]
[1730872079635,4.631963,2590.7,2590.3,0.55]
[1730872079847,3.86035,2590.5,2590.1,0.8182]
[1730872080073,3.8601,2590.6,2590.1,4.67898]
[1730872080074,3.86011,2590.6,2590.1,4.67898]
[1730872080272,3.8222,2591.0,2589.8,0.8182]
[1730872080501,7.721,2590.4,2589.9,3.86114]
[1730872080764,3.86049,2590.4,2589.9,3.86114]
[1730872081264,3.86022,2590.6,2589.9,0.854051]
[1730872081265,3.8601,2590.6,2589.9,0.854051]
[1730872081461,3.8601,2590.6,2589.9,3.86106]
[1730872081462,3.86047,2590.4,2589.9,3.86106]
[1730872081625,3.86047,2590.4,2590.0,0.55]
[1730872082050,7.72099,2590.4,2590.0,0.55]
[1730872082279,3.8602,2590.6,2590.0,4.41097]
[1730872082571,3.86032,2590.5,2590.1,0.55]
[1730872083072,8.85993,2590.8,2590.1,4.41081]
[1730872083246,3.86027,2590.5,2590.1,0.55]
[1730872084327,3.86012,2590.6,2590.2,3.86068]
[1730872085027,5.0,2591.0,2590.7,0.55]
[1730872085933,3.85937,2591.1,2590.7,0.55]
[1730872087156,3.85952,2591.0,2590.7,0.55]
[1730872087354,3.0,2591.3,2590.5,0.55]
[1730872087561,3.85936,2591.1,2590.5,4.41018]
[1730872088551,3.85936,2591.1,2590.7,0.55]
[1730872090076,5.0,2591.4,2591.1,0.55]
[1730872090372,8.85906,2591.4,2590.8,4.40979]
[1730872090575,8.85906,2591.4,2590.8,5.318591]
[1730872090793,5.0,2591.4,2590.8,0.55]
[1730872090935,3.85901,2591.4,2590.8,4.40981]
[1730872091280,8.85871,2591.6,2591.0,0.55]
[1730872091281,5.0,2591.6,2591.0,0.55]
[1730872091466,8.85869,2591.6,2591.2,0.55]
[1730872091774,3.85886,2591.5,2591.0,4.40947]
[1730872091981,3.85869,2591.6,2591.0,4.40947]
[1730872092157,3.85869,2591.6,2591.2,0.55]
[1730872092975,14.67067,2591.7,2591.2,4.4092]
[1730872093174,14.67067,2591.7,2591.2,1.3682]
[1730872093175,13.85847,2591.7,2591.2,1.3682]
[1730872093678,10.0,2591.7,2591.2,5.22733]
[1730872093882,13.85856,2591.7,2591.2,5.22738]
[1730872094183,5.930327,2591.6,2591.2,1.3682]
[1730872094471,10.0,2591.7,2591.4,4.40882]
[1730872095573,10.0,2591.7,2591.3,4.40906]
[1730872096289,10.0,2591.7,2591.3,4.40898]
[1730872096439,10.0,2591.7,2591.3,8.26792]
[1730872096637,10.0,2591.7,2591.5,0.55]
[1730872097503,10.0,2591.7,2591.4,0.55]
[1730872098811,15.24433,2591.7,2591.4,0.55]
[1730872099027,3.85868,2591.6,2591.3,0.55]
[1730872099226,10.0,2591.7,2591.3,0.55]
[1730872099524,13.8585,2591.7,2591.3,0.55]
[1730872099727,3.85864,2591.6,2591.3,0.55]
[1730872099936,3.85877,2591.5,2591.3,0.55]
[1730872100095,13.85856,2591.7,2591.3,0.55]
[1730872100615,10.0,2591.7,2591.5,0.55]
[1730872101156,10.0,2591.7,2591.3,4.40905]
[1730872101718,13.85847,2591.7,2591.3,4.40905]
[1730872101958,10.0,2591.7,2591.3,4.40905]
[1730872102368,13.85848,2591.7,2591.3,4.40905]
[1730872102721,3.85868,2591.6,2591.3,0.55]
[1730872103135,13.85848,2591.7,2591.3,0.55]
[1730872103620,15.744328,2591.7,2591.3,0.55]
[1730872103853,3.85863,2591.6,2591.3,0.55]